bitfinex-derivatives/quotes_ETHF0:USTF0_20250115
["timestamp","ask_amount","ask_price","bid_price","bid_amount"]
[1736911980219,3.51799,3225.2,3224.9,0.31022]
[1736911980415,0.31021,3225.1,3224.8,3.25566006]
[1736911980614,6.48917645,3225.2,3224.8,2.44963006]
[1736911980813,3.31980573,3225.0,3224.9,0.31021]
[1736911981057,3.31980573,3225.1,3224.9,0.31021]
[1736911981420,3.518,3225.2,3224.9,0.31021]
[1736911981718,3.46922076,3225.1,3224.9,0.31022]
[1736911981912,0.31022,3225.0,3224.8,2.44963006]
[1736911982118,3.77943076,3225.1,3224.8,2.44963006]
[1736911982415,3.95412076,3224.9,3224.8,2.75986006]
[1736911982623,0.4849,3224.9,3224.8,2.75986006]
[1736911982915,4.04013225,3224.9,3224.8,2.44963006]
[1736911983133,4.04013225,3224.9,3224.7,41.11024]
[1736911983134,0.31023,3224.8,3224.7,40.8]
[1736911983329,1.24703,3224.8,3224.7,40.8]
[1736911983623,4.80226225,3224.8,3224.7,40.8]
[1736911984445,4.49203225,3224.8,3224.7,40.8]
[1736911984925,4.85188945,3224.8,3224.7,40.8]
[1736911985131,4.85189175,3224.8,3224.7,40.8]
[1736911986170,0.31025,3224.6,3224.5,3.2078]
[1736911986374,0.3598795,3224.6,3224.5,3.2078]
[1736911986573,3.74273359,3224.6,3224.5,3.2078]
[1736911986865,3.74273359,3224.6,3224.5,44.0078]
[1736911987065,3.74273359,3224.6,3224.5,40.8]
[1736911988556,3.43248359,3224.6,3223.9,2.44963006]
[1736911988756,3.43248359,3224.6,3224.1,0.4883]
[1736911988757,3.38285409,3224.6,3224.1,0.4883]
[1736911988965,3.38285409,3224.6,3224.2,40.8]
[1736911989166,0.31028,3224.3,3224.2,40.8]
[1736911989553,3.87040468,3224.3,3223.6,0.4883]
[1736911989854,0.31033,3223.8,3223.6,2.93793006]
[1736911990043,0.31032,3224.0,3223.6,2.93793006]
[1736911990251,0.31032,3224.0,3223.7,40.8]
[1736911990460,3.50102766,3223.9,3223.7,41.11034]
[1736911990655,3.50102766,3223.9,3223.7,40.8]
[1736911991052,0.31032,3223.9,3223.7,40.8]
[1736911991350,3.26471186,3223.8,3223.7,40.8]
[1736911992156,3.57504186,3223.8,3223.7,40.8]
[1736911992752,3.26471186,3223.8,3223.7,40.8]
[1736911993141,3.57504186,3223.8,3223.7,40.8]
[1736911994335,3.62468663,3223.8,3223.7,40.8]
[1736911994833,3.31435663,3223.8,3223.5,3.2078]
[1736911995135,0.31035,3223.6,3223.5,3.2078]
[1736911995437,0.31033,3223.8,3223.5,44.0078]
[1736911995742,0.31032,3223.9,3223.6,3.40633006]
[1736911995933,0.80551,3224.0,3223.6,3.71667006]
[1736911996241,3.53889259,3223.8,3223.6,3.40633006]
[1736911996428,0.31033,3223.8,3223.6,0.9567]
[1736911996836,0.31034,3223.7,3223.6,0.9567]
[1736911998540,0.31034,3223.7,3223.6,0.471]
[1736911999542,3.45722153,3223.9,3223.6,0.471]
[1736911999739,0.31034,3223.7,3223.6,0.471]
[1736912000039,3.45722153,3223.9,3223.7,0.31033]
[1736912000228,3.45722153,3223.9,3223.8,0.31033]
[1736912000428,3.51809,3224.2,3223.6,2.92063006]
[1736912000429,3.2078,3224.2,3223.6,2.92063006]
[1736912000628,0.3103,3224.1,3224.0,2.44963006]
[1736912000843,3.51809,3224.2,3224.0,2.44963006]
[1736912001444,3.2078,3224.2,3224.0,2.75993006]
[1736912001640,3.2078,3224.2,3224.1,0.3103]
[1736912001940,3.97145,3224.7,3224.0,5.65743006]
[1736912002135,3.97145,3224.7,3224.4,2.75990006]
[1736912002332,3.42911401,3224.6,3224.5,41.2795]
[1736912005429,3.42911401,3224.6,3224.5,41.58976]
[1736912005836,3.42911401,3224.6,3224.5,41.96436]
[1736912006738,3.42911401,3224.6,3224.5,41.6541]
[1736912007036,3.73936401,3224.6,3224.5,0.4795]
[1736912007946,0.31026,3224.5,3224.4,3.2078]
[1736912008144,1.22126,3224.5,3224.4,3.2078]
[1736912008344,4.7436071,3224.5,3224.4,3.2078]
[1736912008847,10.14041165,3224.5,3223.8,3.2078]
[1736912009041,0.31032,3223.9,3223.8,3.2078]
[1736912009441,3.84891808,3223.9,3223.8,3.2078]
[1736912009841,0.31034,3223.7,3223.6,0.4892]
[1736912015347,3.58979767,3223.7,3223.6,0.4892]
[1736912017048,3.27945767,3223.7,3223.4,40.8]
[1736912017247,0.31036,3223.5,3223.4,40.8]
[1736912019757,3.63421141,3223.5,3223.4,40.8]
[1736912022654,3.32385141,3223.5,3223.4,40.8]
[1736912022843,0.31034,3223.7,3223.4,40.8]
[1736912023045,0.31035,3223.6,3223.5,0.4947]
[1736912023851,0.31036,3223.5,3223.4,40.8]
[1736912024374,3.86956025,3223.5,3223.4,40.8]
[1736912026853,0.31038,3223.3,3223.2,3.2078]
[1736912027250,3.57774126,3223.3,3223.2,3.2078]
[1736912027452,4.06414126,3223.3,3223.2,44.0078]
[1736912028456,3.75376126,3223.3,3223.2,44.0078]
[1736912028652,3.26736126,3223.3,3223.2,44.0078]
[1736912028856,0.4743,3223.8,3223.5,0.31035]
[1736912028857,0.31033,3223.8,3223.5,0.31035]
[1736912029153,0.77564,3224.6,3223.6,0.76694]
[1736912029154,4.00452,3224.0,3223.6,0.76694]
[1736912029357,0.31032,3223.9,3223.7,0.4921]
[1736912029960,0.31032,3223.9,3223.7,3.6999]
[1736912030451,0.4864,3224.0,3223.7,3.6999]
[1736912030690,0.31033,3223.8,3223.7,3.6999]
[1736912031051,0.31033,3223.8,3223.7,3.2078]
[1736912031352,0.31038,3223.3,3223.2,44.0078]
[1736912031558,0.31038,3223.3,3223.2,3.2078]
[1736912031793,3.70585776,3223.3,3223.2,3.2078]
[1736912038756,3.70585776,3223.3,3223.2,44.0078]
[1736912040363,0.31042,3222.8,3222.7,0.9831]
[1736912040665,0.31042,3222.9,3222.7,0.9831]
[1736912040863,0.31042,3222.9,3222.8,40.8]
[1736912041163,3.90791206,3222.9,3222.8,40.8]
[1736912054469,3.59749206,3222.9,3222.8,40.8]
[1736912054969,0.31041,3223.0,3222.8,40.8]
[1736912055470,3.44824963,3222.9,3222.8,40.8]
[1736912056669,3.44824963,3222.9,3222.8,44.0078]
[1736912057063,3.2078,3223.6,3222.8,46.45743006]
[1736912057373,3.38493182,3223.1,3222.8,46.45743006]
[1736912057669,0.31039,3223.2,3222.9,0.31041]
[1736912058063,3.54888386,3223.0,3222.9,0.31041]
[1736912058271,0.31038,3223.3,3222.9,43.24963006]
[1736912058470,0.31038,3223.3,3223.2,3.2078]
[1736912058669,0.9391,3223.9,3223.2,5.65743006]
[1736912058866,0.31034,3223.7,3223.3,1.65287]
[1736912059775,0.31035,3223.6,3223.3,1.65287]
[1736912060472,0.31035,3223.6,3223.3,1.3425]
[1736912060670,0.31034,3223.7,3223.5,2.75998006]
[1736912060870,0.31033,3223.8,3223.5,2.44963006]
[1736912061177,0.31033,3223.8,3223.6,0.31035]
[1736912061375,0.31033,3223.8,3223.5,2.75998006]
[1736912061671,0.31032,3223.9,3223.7,3.2078]
[1736912061871,0.31033,3223.8,3223.7,3.2078]
[1736912062374,0.31032,3223.9,3223.7,3.2078]
[1736912063371,3.41425124,3224.0,3223.7,3.51813]
[1736912063671,3.5181,3224.1,3223.8,2.44963006]
[1736912063869,3.2078,3224.1,3223.9,41.7707]
[1736912064070,0.78329,3224.3,3223.9,42.08102]
[1736912064278,0.473,3224.3,3223.9,41.7707]
[1736912064476,3.70158762,3224.2,3223.9,41.7707]
[1736912064677,0.3103,3224.1,3223.9,41.7707]
[1736912064877,3.70157762,3224.2,3223.9,41.7707]
[1736912065274,0.31031,3224.0,3223.9,40.8]
[1736912065679,3.61913836,3224.0,3223.9,40.8]
[1736912066778,3.30882836,3224.0,3223.9,40.8]
[1736912067169,0.3103,3224.1,3223.9,40.8]
[1736912067372,3.50530648,3224.0,3223.9,40.8]
[1736912067775,3.50530648,3224.0,3223.9,41.11032]
[1736912067976,0.78328,3224.3,3224.0,0.31031]
[1736912068781,0.473,3224.3,3223.9,40.8]
[1736912068979,0.3103,3224.1,3223.9,40.8]
[1736912069680,3.90794658,3224.0,3223.9,40.8]
[1736912069882,0.31033,3223.8,3223.7,3.2078]
[1736912070690,0.78793,3223.8,3223.7,3.2078]
[1736912071585,4.25419146,3223.8,3223.7,3.2078]
[1736912072787,4.25419146,3223.8,3223.6,40.8]
[1736912072989,4.25419146,3223.8,3223.7,3.2078]
[1736912073691,3.94386146,3223.8,3223.6,40.8]
[1736912073892,0.31034,3223.7,3223.6,40.8]
[1736912074289,3.84521176,3223.7,3223.6,40.8]
[1736912077289,3.89485903,3223.7,3223.6,40.8]
[1736912077789,3.8948592,3223.7,3223.6,40.8]
[1736912078295,3.84521176,3223.7,3223.6,40.8]
[1736912078498,3.8948588,3223.7,3223.6,40.8]
[1736912078827,3.84521176,3223.7,3223.6,40.8]
[1736912080595,3.89485856,3223.7,3223.6,40.8]
[1736912080995,3.58451856,3223.7,3222.9,3.6935]
[1736912081189,0.3104,3223.0,3222.9,3.2078]
[1736912081592,3.70916935,3223.0,3222.9,44.0078]
[1736912082900,3.70916935,3223.0,3222.9,40.8]
[1736912083496,0.31043,3222.7,3222.6,0.4976]
[1736912084099,0.31043,3222.7,3222.6,41.2976]
[1736912086395,3.39876935,3223.0,3222.6,41.2976]
[1736912086794,0.31042,3222.9,3222.6,41.2976]
[1736912087238,3.36351804,3222.8,3222.6,41.2976]
[1736912089301,3.67393804,3222.8,3222.6,41.2976]
[1736912089703,0.31042,3222.8,3222.6,41.2976]
[1736912090005,3.43043762,3222.7,3222.6,41.2976]
[1736912096095,3.74086762,3222.7,3222.6,41.2976]
[1736912098411,3.74086762,3222.7,3222.6,40.8]
[1736912099207,0.31045,3222.5,3222.4,3.2078]
[1736912099705,3.77146728,3222.5,3222.4,44.0078]
[1736912102009,7.02893208,3222.5,3222.4,40.8]
[1736912102212,7.02893208,3222.5,3221.7,3.2078]
[1736912102213,0.31052,3221.8,3221.7,3.2078]
[1736912102708,0.31052,3221.8,3221.7,44.0078]
[1736912104206,0.4588,3222.1,3221.7,44.0078]
[1736912104411,0.4689,3222.3,3222.0,2.44963006]
[1736912104714,3.41264751,3222.2,3222.1,3.2078]
[1736912107214,3.72312751,3222.2,3222.1,3.2078]
[1736912107810,3.41264751,3222.2,3222.1,3.2078]
[1736912108606,0.4689,3222.3,3222.1,3.51829]
[1736912108807,0.31046,3222.4,3222.2,0.9278]
[1736912109018,0.9215,3222.8,3222.2,0.9278]
[1736912109019,0.31046,3222.5,3222.2,0.9278]
[1736912109210,0.31046,3222.4,3222.3,40.8]
[1736912109411,4.04318971,3222.7,3222.3,40.8]
[1736912109607,0.31046,3222.5,3222.3,40.8]
[1736912110021,0.31046,3222.5,3222.2,0.9278]
[1736912110609,4.04318971,3222.7,3222.2,0.9278]
[1736912110815,0.31046,3222.4,3222.2,0.9278]
[1736912112018,4.04318971,3222.7,3222.1,3.2078]
[1736912112216,0.31048,3222.2,3222.1,3.2078]
[1736912112414,0.4904,3222.7,3222.1,3.2078]
[1736912112415,0.31045,3222.5,3222.1,3.2078]
[1736912112615,0.31047,3222.3,3222.1,3.2078]
[1736912113022,0.31047,3222.3,3222.1,3.5826]
[1736912114221,0.4904,3222.7,3222.1,3.5826]
[1736912114443,0.31046,3222.4,3222.1,3.5826]
[1736912114719,3.29703857,3222.6,3222.1,3.2078]
[1736912114920,0.31048,3222.2,3222.1,3.2078]
[1736912115721,3.56574588,3222.2,3222.1,3.2078]
[1736912115914,0.31052,3221.8,3221.7,3.2078]
[1736912116319,3.76595194,3221.8,3221.7,3.2078]
[1736912123619,3.45543194,3221.8,3221.7,3.2078]
[1736912123820,3.76595194,3221.8,3221.7,3.2078]
[1736912124021,0.31052,3221.8,3221.7,3.2078]
[1736912124229,3.56194313,3221.8,3221.7,3.2078]
[1736912127058,3.25142313,3221.8,3221.5,3.2078]
[1736912127226,0.31053,3221.7,3221.5,3.2078]
[1736912127727,3.59428078,3221.6,3221.5,3.2078]
[1736912128635,3.90482078,3221.6,3221.5,3.2078]
[1736912129429,3.59428078,3221.6,3221.5,3.2078]
[1736912129832,3.59428078,3221.6,3221.1,3.2078]
[1736912130131,0.31058,3221.2,3221.1,3.2078]
[1736912133241,3.81075855,3221.2,3221.1,3.2078]
[1736912133538,0.31058,3221.2,3221.1,3.2078]
[1736912134142,0.4586,3221.5,3221.1,3.2078]
[1736912134346,1.55213,3222.9,3221.8,0.31051]
[1736912134347,0.31048,3222.3,3221.8,0.31051]
[1736912134549,3.22571006,3222.8,3221.4,2.44963006]
[1736912134550,3.44053006,3222.8,3222.2,3.2078]
[1736912134744,4.2696684,3222.8,3222.2,3.2078]
[1736912135045,0.31044,3222.7,3222.3,2.44963006]
[1736912135238,3.70819737,3222.7,3222.3,2.44963006]
[1736912136047,0.31045,3222.6,3222.2,3.51827]
[1736912136248,0.31046,3222.5,3222.2,3.2078]
[1736912137842,0.31046,3222.5,3222.2,3.51828]
[1736912139649,0.31046,3222.5,3222.2,3.2078]
[1736912139847,0.31045,3222.6,3222.3,0.31047]
[1736912140051,3.2078,3223.3,3222.5,2.44963006]
[1736912140252,3.2078,3223.3,3222.9,3.2078]
[1736912140548,3.2078,3223.3,3223.1,2.44963006]
[1736912140757,3.2078,3223.3,3223.2,0.4953]
[1736912141950,0.4984,3223.5,3223.2,0.4953]
[1736912142150,3.2078,3224.3,3223.4,5.65743006]
[1736912142356,0.3103,3224.1,3223.7,0.31033]
[1736912142552,3.35396445,3224.0,3223.7,0.31033]
[1736912142951,3.35396445,3224.0,3223.4,5.65743006]
[1736912143252,3.66427445,3224.0,3223.6,0.31035]
[1736912143449,3.35396445,3224.0,3223.5,0.31035]
[1736912143654,3.35396445,3224.0,3223.5,0.31036]
[1736912143847,3.66427445,3224.0,3223.4,3.2078]
[1736912144155,3.66427445,3224.0,3223.6,0.31034]
[1736912144846,3.35396445,3224.0,3223.6,0.31034]
[1736912145752,3.66427445,3224.0,3223.6,0.31034]
[1736912146145,3.66427445,3224.0,3223.5,0.31035]
[1736912146347,3.35396445,3224.0,3223.4,3.2078]
[1736912146544,3.35396445,3224.0,3223.4,5.65743006]
[1736912146748,3.35396445,3224.0,3223.8,0.31033]
[1736912147154,3.35396445,3224.0,3223.8,3.2078]
[1736912147349,3.35396445,3224.0,3223.8,3.51812]
[1736912147549,3.35396445,3224.0,3223.8,3.2078]
[1736912148751,3.35396445,3224.0,3223.4,2.44963006]
[1736912148956,0.31032,3223.9,3223.4,2.75999006]
[1736912149256,3.73887935,3223.8,3223.3,3.2078]
[1736912149453,3.73887935,3223.8,3223.3,3.51818]
[1736912149653,0.79384,3223.7,3223.3,3.51818]
[1736912150150,3.91204935,3223.7,3223.4,0.31037]
[1736912151657,3.91204935,3223.7,3223.5,0.31035]
[1736912151861,3.91204935,3223.7,3223.6,0.31035]
[1736912158463,0.3103,3224.1,3223.5,0.31036]
[1736912158663,0.3103,3224.1,3223.8,0.31032]
[1736912158860,3.23040713,3224.0,3223.9,0.31031]
[1736912159166,1.24528,3224.3,3224.0,0.3103]
[1736912159357,0.935,3224.3,3224.1,0.3103]
[1736912159558,3.53822123,3224.2,3224.1,0.3103]
[1736912160359,0.935,3224.3,3223.8,3.6758]
[1736912160558,0.935,3224.3,3224.2,0.31029]
[1736912161567,0.935,3224.3,3223.8,3.6758]
[1736912161762,1.24528,3224.3,3223.9,0.31032]
[1736912162665,0.935,3224.3,3224.0,0.3103]
[1736912163863,0.935,3224.3,3223.8,3.6758]
[1736912164063,0.3103,3224.1,3223.8,3.6758]
[1736912164472,3.22628164,3224.0,3223.8,3.6758]
[1736912165063,3.22628164,3224.0,3223.8,3.98613]
[1736912165269,3.22628164,3224.0,3223.8,3.6758]
[1736912165468,3.22628164,3224.0,3223.9,0.31032]
[1736912168363,3.22628164,3224.0,3223.8,3.6758]
[1736912168563,3.22628164,3224.0,3223.8,3.2078]
[1736912168766,0.31032,3223.9,3223.8,3.2078]
[1736912168967,3.22628164,3224.0,3223.8,3.51813]
[1736912171262,3.22628164,3224.0,3223.8,3.2078]
[1736912171468,3.53659164,3224.0,3223.7,0.31033]
[1736912171769,3.22628164,3224.0,3223.7,0.31033]
[1736912171972,0.31032,3223.9,3223.4,2.92323006]
[1736912172267,0.31032,3223.9,3223.6,0.31034]
[1736912172566,0.4562,3223.8,3223.6,0.31034]
[1736912172870,0.4562,3223.8,3223.5,0.31035]
[1736912173168,0.4562,3223.8,3223.4,2.92323006]
[1736912173363,0.4562,3223.8,3223.7,0.31034]
[1736912173763,0.4562,3223.8,3223.6,0.31034]
[1736912178178,2.90583006,3223.8,3223.3,3.2078]
[1736912178371,4.51143233,3223.7,3223.3,3.2078]
[1736912178572,4.51143233,3223.7,3223.5,0.31035]
[1736912178814,4.51143233,3223.7,3223.3,3.2078]
[1736912178974,4.82177233,3223.7,3223.4,0.31036]
[1736912179475,4.51143233,3223.7,3223.6,0.31035]
[1736912179669,0.4562,3223.8,3223.7,0.31034]
[1736912179890,0.9405,3224.2,3223.7,3.2078]
[1736912180177,3.76845253,3224.1,3224.0,0.31031]
[1736912180378,3.76845253,3224.1,3223.9,0.31031]
[1736912180675,3.76845253,3224.1,3223.8,0.4766]
[1736912180974,5.65743006,3224.0,3223.3,3.2078]
[1736912181170,3.2078,3223.6,3222.9,3.2078]
[1736912181371,0.9405,3223.5,3222.9,3.2078]
[1736912181573,4.74158953,3223.5,3222.9,3.51821]
[1736912182003,4.74158953,3223.5,3222.9,3.2078]
[1736912182174,4.74158953,3223.5,3223.0,2.44963006]
[1736912182379,0.4705,3223.5,3223.4,0.31037]
[1736912182776,0.4705,3223.5,3223.4,0.77397]
[1736912184381,0.4705,3223.5,3223.4,0.4636]
[1736912184680,0.4705,3223.5,3223.4,0.77397]
[1736912187776,3.73006282,3223.5,3223.3,3.2078]
[1736912188478,0.9735,3223.8,3223.5,0.31035]
[1736912188684,0.4619,3223.7,3223.5,0.31035]
[1736912188883,3.91885476,3223.7,3223.5,0.31035]
[1736912189887,4.22919476,3223.7,3223.4,0.31036]
[1736912190284,3.91885476,3223.7,3223.4,0.31037]
[1736912190483,3.91885476,3223.7,3223.3,3.2078]
[1736912190685,3.91885476,3223.7,3223.5,0.31035]
[1736912191985,3.91885476,3223.7,3223.6,0.31035]
[1736912192988,4.22919476,3223.7,3223.4,0.31037]
[1736912193588,3.91885476,3223.7,3223.3,3.2078]
[1736912193986,3.91885476,3223.7,3223.5,0.31035]
[1736912194495,3.91885476,3223.7,3223.3,3.2078]
[1736912194692,3.91885476,3223.7,3223.6,0.31035]
[1736912194993,0.4896,3224.2,3224.0,0.3103]
[1736912195288,0.466,3224.1,3223.9,3.51811]
[1736912195897,0.466,3224.1,3223.9,3.2078]
[1736912196081,3.40332722,3224.0,3223.9,3.51812]
[1736912198290,0.466,3224.1,3223.9,3.2078]
[1736912198596,0.466,3224.1,3224.0,0.31031]
[1736912198807,0.466,3224.1,3223.9,3.2078]
[1736912198991,3.43558807,3224.0,3223.5,3.2078]
[1736912199192,0.31032,3223.9,3223.6,0.31034]
[1736912199896,0.31035,3223.6,3223.5,3.2078]
[1736912200188,0.31035,3223.6,3222.6,4.8632424]
[1736912200189,0.31037,3223.4,3222.7,3.6841]
[1736912200397,0.3104,3223.1,3222.7,3.6841]
[1736912200587,3.62111081,3223.3,3222.7,3.6841]
[1736912200788,0.80621,3223.0,3222.7,3.6841]
[1736912200986,0.31042,3222.9,3222.7,3.6841]
[1736912201189,3.82374928,3222.9,3222.7,3.2078]
[1736912204198,3.51332928,3222.9,3222.7,3.2078]
[1736912204495,0.31042,3222.8,3222.7,3.2078]
[1736912204899,3.83398715,3222.8,3222.7,3.2078]
[1736912205400,3.52356715,3222.8,3222.7,3.2078]
[1736912205694,0.31042,3222.8,3222.7,3.2078]
[1736912206214,3.25086287,3222.8,3222.7,3.2078]
[1736912207596,0.31042,3222.9,3222.7,3.2078]
[1736912208402,0.4958,3223.0,3222.9,0.31041]
[1736912208600,0.4706,3223.3,3223.1,0.31039]
[1736912209503,0.4706,3223.3,3223.0,0.458]
[1736912209691,0.78098,3223.3,3223.0,0.458]
[1736912209897,0.4706,3223.3,3223.0,0.7684]
[1736912210096,0.78098,3223.3,3223.0,0.458]
[1736912210603,0.4706,3223.3,3223.0,0.7684]
[1736912211202,0.78098,3223.3,3223.0,0.458]
[1736912211701,0.78098,3223.3,3223.0,0.7684]
[1736912211998,0.496,3223.4,3223.3,0.31038]
[1736912212301,4.08811894,3223.4,3223.1,3.2078]
[1736912212502,4.08811894,3223.4,3223.2,0.31038]
[1736912213804,4.08811894,3223.4,3223.1,3.2078]
[1736912213997,0.76258,3223.3,3223.1,3.2078]
[1736912214201,0.31039,3223.2,3223.1,3.2078]
[1736912214501,0.76258,3223.3,3223.1,3.2078]
[1736912215206,0.31039,3223.2,3223.1,3.2078]
[1736912218303,0.4522,3223.3,3223.1,3.2078]
[1736912218509,0.4522,3223.3,3223.1,3.51819]
[1736912219010,0.76258,3223.3,3223.1,3.51819]
[1736912220206,3.2078,3223.9,3223.1,3.2078]
[1736912220406,0.80383,3223.8,3223.6,0.31035]
[1736912220615,4.20728863,3223.8,3223.6,0.77405]
[1736912220809,0.80383,3223.8,3223.6,1.24585]
[1736912221039,0.4935,3223.8,3223.6,1.24585]
[1736912221205,3.40345863,3223.7,3223.6,1.24585]
[1736912222514,0.73695865,3224.2,3224.0,0.31031]
[1736912222714,0.4554,3224.1,3223.9,0.31032]
[1736912222914,0.4554,3224.1,3223.8,2.44963006]
[1736912223215,0.4554,3224.1,3224.0,3.51811]
[1736912225314,0.31028,3224.3,3224.0,3.51811]
[1736912225514,0.4854,3224.5,3224.1,2.44963006]
[1736912225710,0.4854,3224.5,3224.3,0.31028]
[1736912226418,0.4854,3224.5,3224.2,0.76449]
[1736912227017,0.4854,3224.5,3224.3,0.31028]
[1736912228121,0.4854,3224.5,3224.2,0.76448]
[1736912228625,0.4854,3224.5,3224.2,0.4542]
[1736912228921,0.4854,3224.5,3224.3,0.31028]
[1736912229716,0.486,3224.6,3224.3,0.31028]
[1736912229923,0.79625,3224.6,3224.3,0.31028]
[1736912230224,3.54444125,3224.5,3224.3,0.31028]
[1736912230826,3.54444125,3224.5,3224.2,1.26268]
[1736912231128,0.79625,3224.6,3224.2,1.26268]
[1736912232125,0.486,3224.6,3224.2,1.26268]
[1736912232427,0.79625,3224.6,3224.2,1.26268]
[1736912233023,0.31026,3224.5,3224.2,1.26268]
[1736912234424,0.31026,3224.5,3224.3,3.2078]
[1736912235427,0.486,3224.6,3224.3,3.2078]
[1736912235616,0.486,3224.6,3224.5,0.31026]
[1736912235857,0.486,3224.6,3224.4,2.75989006]
[1736912238329,0.486,3224.6,3224.4,2.44963006]
[1736912238526,0.486,3224.6,3224.5,0.31026]
[1736912238726,0.78272,3225.0,3224.5,0.31026]
[1736912238925,0.4569,3224.9,3224.7,0.31023]
[1736912239228,4.05518934,3224.9,3224.7,0.31023]
[1736912239719,4.05518934,3224.9,3224.4,2.82473006]
[1736912239923,0.31024,3224.7,3224.4,2.75989006]
[1736912240129,0.31024,3224.8,3224.5,0.31025]
[1736912240628,0.31024,3224.7,3224.5,0.31025]
[1736912243433,0.31024,3224.7,3224.6,0.31025]
[1736912244129,0.31024,3224.7,3224.5,0.31026]
[1736912244829,0.31025,3224.6,3224.5,0.31026]
[1736912245031,0.31025,3224.7,3224.5,0.31026]
[1736912246729,4.05518934,3224.9,3224.4,2.44963006]
[1736912247032,0.4569,3224.9,3224.8,5.96766006]
[1736912247223,0.9677,3225.4,3224.8,5.65743006]
[1736912247428,0.4526,3225.3,3225.2,0.31019]
[1736912247733,3.87457105,3225.3,3225.2,3.51799]
[1736912248531,0.4526,3225.3,3225.2,3.51799]
[1736912249547,0.4526,3225.3,3225.2,3.51522953]
[1736912252031,3.2078,3226.4,3225.2,3.2078]
[1736912252229,3.2078,3226.4,3226.2,3.2078]
[1736912252230,0.4517,3226.3,3226.2,3.2078]
[1736912252429,0.4517,3226.3,3226.2,3.5179]
[1736912252624,3.72338795,3226.3,3226.2,3.5179]
[1736912253835,3.27168795,3226.3,3226.2,3.5179]
[1736912254339,3.27168795,3226.3,3226.2,3.9927]
[1736912254537,0.002,3226.5,3226.2,3.9927]
[1736912254538,0.002,3226.5,3226.4,0.31008]
[1736912254833,3.36851241,3226.5,3226.4,2.75971006]
[1736912256631,0.002,3226.5,3226.4,2.75971006]
[1736912258833,0.002,3226.5,3226.4,5.96751006]
[1736912264336,0.5025,3226.5,3226.4,5.96751006]
[1736912264537,0.5025,3226.5,3226.4,5.65743006]
[1736912264838,0.5025,3226.5,3226.1,2.44963006]
[1736912265042,0.31011,3226.1,3226.0,3.2078]
[1736912265238,0.9485,3226.4,3226.0,3.2078]
[1736912265448,0.9485,3226.4,3226.1,0.31011]
[1736912265637,3.5241934,3226.3,3226.1,0.31011]
[1736912265840,3.5241934,3226.3,3226.0,3.2078]
[1736912266143,3.8342834,3226.3,3226.0,3.51791]
[1736912267242,3.5241934,3226.3,3226.0,3.51791]
[1736912270581,3.5241934,3226.3,3226.2,0.3101]
[1736912270745,3.5241934,3226.3,3226.2,2.75973006]
[1736912270946,0.5025,3226.5,3226.4,0.31008]
[1736912271141,0.5025,3226.5,3226.4,3.51788]
[1736912276251,0.002,3226.5,3226.4,3.51788]
[1736912277457,0.4928,3226.8,3226.7,0.31005]
[1736912277654,0.4989,3227.2,3227.0,0.31001]
[1736912278049,3.90182537,3227.1,3227.0,0.31001]
[1736912278446,3.40902537,3227.1,3227.0,2.75964006]
[1736912278643,0.4928,3227.4,3227.3,0.30999]
[1736912278851,0.4802,3227.7,3227.6,0.30996]
[1736912279057,3.30643142,3227.7,3227.6,2.75959006]
[1736912279358,3.2078,3228.6,3227.6,3.69763006]
[1736912279558,0.9651,3228.5,3228.3,2.44963006]
[1736912279761,3.57161094,3228.4,3228.3,2.44963006]
[1736912280065,0.9651,3228.5,3228.2,3.2078]
[1736912280253,0.9651,3228.5,3228.2,3.5177]
[1736912280458,3.57161094,3228.4,3228.2,3.5177]
[1736912280653,3.57161094,3228.4,3228.2,3.2078]
[1736912280858,3.57161094,3228.4,3228.2,3.5177]
[1736912281162,3.57161094,3228.4,3228.2,3.2078]
[1736912282960,3.57161094,3228.4,3228.2,3.5177]
[1736912283360,3.57161094,3228.4,3228.2,3.2078]
[1736912284283,3.88150094,3228.4,3228.2,3.2078]
[1736912284457,3.57161094,3228.4,3228.2,3.2078]
[1736912284762,3.88150094,3228.4,3228.2,3.2078]
[1736912285252,3.57161094,3228.4,3228.2,3.2078]
[1736912285448,3.88150094,3228.4,3228.2,3.2078]
[1736912285652,3.57161094,3228.4,3228.2,3.2078]
[1736912285861,3.88150094,3228.4,3228.2,3.2078]
[1736912286153,3.57161094,3228.4,3228.2,3.2078]
[1736912286375,0.3099,3228.3,3228.2,3.2078]
[1736912286762,3.53051015,3228.3,3227.8,3.2078]
[1736912287060,3.257368,3228.2,3227.4,2.44963006]
[1736912287255,0.30995,3227.8,3227.4,2.44963006]
[1736912287456,0.4785,3227.7,3227.4,2.44963006]
[1736912287659,4.45008122,3227.7,3227.4,2.44963006]
[1736912287858,4.45008122,3227.7,3227.3,0.4524]
[1736912288054,0.30996,3227.6,3227.4,2.44963006]
[1736912288367,3.50018122,3227.5,3227.4,2.44963006]
[1736912289062,0.31,3227.2,3227.1,5.65743006]
[1736912289266,3.50018122,3227.5,3226.8,2.92103006]
[1736912289467,3.39779841,3227.2,3226.9,0.31002]
[1736912289861,0.4897,3227.4,3226.9,0.31002]
[1736912290063,3.39967139,3227.3,3226.8,2.92103006]
[1736912290266,0.4897,3227.4,3226.7,3.2078]
[1736912290563,0.31001,3227.2,3226.8,2.75967006]
[1736912290759,0.31002,3227.1,3226.8,2.44963006]
[1736912290965,3.70727805,3227.1,3226.8,2.44963006]
[1736912291258,0.4897,3227.4,3226.8,2.44963006]
[1736912291764,3.49184578,3227.0,3226.8,2.44963006]
[1736912291954,0.76413,3226.9,3226.8,2.44963006]
[1736912292159,0.9345,3226.9,3226.7,3.2078]
[1736912292360,0.31004,3226.8,3226.7,3.2078]
[1736912293364,0.9345,3226.9,3226.7,3.2078]